[Event "Titled Tuesday Blitz December 20 Early 2022"]
[White "BENO_CHESS"]
[Black "Ordekalog"]
[WhiteElo "2706"]
[BlackElo "2796"]
[Result "1/2-1/2"]
[Round "01"]
[TimeControl "180+2"]
[Date "2022.12.20"]
[WhiteClock "0:00:47"]
[BlackClock "0:00:15"]

1. c4 {[%clk 0:03:00]}  e6 {[%clk 0:02:58]} 2. d4 {[%clk 0:02:58]}  d5 {[%clk 0:02:58]} 3. Nf3 {[%clk 0:02:54]}  c5 {[%clk 0:02:57]} 4. cxd5 {[%clk 0:02:53]}  exd5 {[%clk 0:02:56]} 5. Bg5 {[%clk 0:02:54]}  Be7 {[%clk 0:02:55]} 6. Bxe7 {[%clk 0:02:54]}  Nxe7 {[%clk 0:02:55]} 7. Nc3 {[%clk 0:02:54]}  cxd4 {[%clk 0:02:53]} 8. Nxd4 {[%clk 0:02:54]}  Nbc6 {[%clk 0:02:53]} 9. e3 {[%clk 0:02:54]}  O-O {[%clk 0:02:52]} 10. Be2 {[%clk 0:02:54]}  Qb6 {[%clk 0:02:52]} 11. Nb3 {[%clk 0:02:45]}  Be6 {[%clk 0:02:48]} 12. O-O {[%clk 0:02:44]}  Rad8 {[%clk 0:02:48]} 13. Na4 {[%clk 0:02:44]}  Qb4 {[%clk 0:02:42]} 14. Nac5 {[%clk 0:02:44]}  Bc8 {[%clk 0:02:35]} 15. a3 {[%clk 0:02:38]}  Qh4 {[%clk 0:02:34]} 16. g3 {[%clk 0:02:13]}  Qf6 {[%clk 0:02:22]} 17. Nd4 {[%clk 0:02:09]}  Ne5 {[%clk 0:02:03]} 18. Nd3 {[%clk 0:02:03]}  Nc4 {[%clk 0:02:02]} 19. b3 {[%clk 0:01:57]}  Nd6 {[%clk 0:02:00]} 20. Nf4 {[%clk 0:01:58]}  Ne4 {[%clk 0:01:58]} 21. Rc1 {[%clk 0:01:58]}  Rfe8 {[%clk 0:01:49]} 22. Bg4 {[%clk 0:01:47]}  Bxg4 {[%clk 0:01:46]} 23. Qxg4 {[%clk 0:01:48]}  g6 {[%clk 0:01:34]} 24. Rc7 {[%clk 0:01:43]}  Nd6 {[%clk 0:01:23]} 25. Rfc1 {[%clk 0:01:40]}  Qe5 {[%clk 0:01:17]} 26. Nd3 {[%clk 0:01:32]}  Qe4 {[%clk 0:01:16]} 27. Qxe4 {[%clk 0:01:32]}  dxe4 {[%clk 0:01:17]} 28. Nc5 {[%clk 0:01:32]}  Nd5 {[%clk 0:01:16]} 29. Nxb7 {[%clk 0:01:24]}  Nxc7 {[%clk 0:01:06]} 30. Nxd8 {[%clk 0:01:25]}  Ncb5 {[%clk 0:01:04]} 31. N8c6 {[%clk 0:01:21]}  Nxa3 {[%clk 0:01:00]} 32. Nxa7 {[%clk 0:01:21]}  Rb8 {[%clk 0:00:59]} 33. Nac6 {[%clk 0:01:17]}  Ra8 {[%clk 0:00:58]} 34. Ra1 {[%clk 0:01:16]}  Kf8 {[%clk 0:00:37]} 35. b4 {[%clk 0:01:07]}  Ke8 {[%clk 0:00:36]} 36. b5 {[%clk 0:01:04]}  Kd7 {[%clk 0:00:36]} 37. b6 {[%clk 0:01:04]}  Kc8 {[%clk 0:00:31]} 38. Na7+ {[%clk 0:01:04]}  Kb7 {[%clk 0:00:30]} 39. Rxa3 {[%clk 0:01:04]}  Kxb6 {[%clk 0:00:30]} 40. Nab5 {[%clk 0:01:05]}  Rxa3 {[%clk 0:00:28]} 41. Nxa3 {[%clk 0:01:06]}  Kc5 {[%clk 0:00:28]} 42. Nb1 {[%clk 0:01:06]}  Kd5 {[%clk 0:00:29]} 43. Nc3+ {[%clk 0:01:06]}  Ke5 {[%clk 0:00:30]} 44. Nde2 {[%clk 0:01:05]}  f5 {[%clk 0:00:30]} 45. Kg2 {[%clk 0:01:05]}  g5 {[%clk 0:00:30]} 46. h4 {[%clk 0:01:05]}  h6 {[%clk 0:00:30]} 47. hxg5 {[%clk 0:01:06]}  hxg5 {[%clk 0:00:31]} 48. Na2 {[%clk 0:01:04]}  Ne8 {[%clk 0:00:30]} 49. Nb4 {[%clk 0:01:04]}  Nf6 {[%clk 0:00:30]} 50. Nc6+ {[%clk 0:01:05]}  Kd6 {[%clk 0:00:30]} 51. Ned4 {[%clk 0:01:04]}  Nd5 {[%clk 0:00:28]} 52. Nd8 {[%clk 0:01:02]}  f4 {[%clk 0:00:28]} 53. Nf7+ {[%clk 0:01:02]}  Ke7 {[%clk 0:00:26]} 54. Nxg5 {[%clk 0:01:02]}  fxe3 {[%clk 0:00:27]} 55. Nxe4 {[%clk 0:01:02]}  exf2 {[%clk 0:00:27]} 56. Kxf2 {[%clk 0:01:02]}  Nb4 {[%clk 0:00:24]} 57. Ke3 {[%clk 0:01:01]}  Kf8 {[%clk 0:00:20]} 58. Nc3 {[%clk 0:00:58]}  Na6 {[%clk 0:00:19]} 59. g4 {[%clk 0:00:56]}  Nc7 {[%clk 0:00:19]} 60. Kf4 {[%clk 0:00:55]}  Kg8 {[%clk 0:00:18]} 61. Kf5 {[%clk 0:00:54]}  Ne8 {[%clk 0:00:19]} 62. Ne4 {[%clk 0:00:53]}  Kf7 {[%clk 0:00:18]} 63. g5 {[%clk 0:00:51]}  Ng7+ {[%clk 0:00:16]} 64. Kg4 {[%clk 0:00:51]}  Kg6 {[%clk 0:00:15]} 65. Nf3 {[%clk 0:00:49]}  Ne6 {[%clk 0:00:14]} 66. Ne5+ {[%clk 0:00:49]}  Kg7 {[%clk 0:00:14]} 67. g6 {[%clk 0:00:49]}  Nf8 {[%clk 0:00:15]} 68. Kg5 {[%clk 0:00:47]}  Nxg6 {[%clk 0:00:15]} 69. Nxg6 {[%clk 0:00:47]} 1/2-1/2


[Site "https://www.chess.com"]

[Event "Titled Tuesday Blitz December 20 Early 2022"]
[White "Badlyplayed"]
[Black "Iskusnyh, Sergei"]
[BlackFideId "4120027"]
[WhiteElo "2262"]
[BlackElo "2440"]
[Result "0-1"]
[Round "01"]
[TimeControl "180+2"]
[Date "2022.12.20"]
[WhiteClock "0:00:17"]
[BlackClock "0:00:19"]

1. e4 {[%clk 0:02:59]}  e6 {[%clk 0:02:56]} 2. d4 {[%clk 0:02:57]}  d5 {[%clk 0:02:57]} 3. e5 {[%clk 0:02:56]}  c5 {[%clk 0:02:56]} 4. c3 {[%clk 0:02:56]}  Nc6 {[%clk 0:02:56]} 5. Nf3 {[%clk 0:02:56]}  Nge7 {[%clk 0:02:57]} 6. Na3 {[%clk 0:02:53]}  Bd7 {[%clk 0:02:53]} 7. Be2 {[%clk 0:02:45]}  cxd4 {[%clk 0:02:39]} 8. cxd4 {[%clk 0:02:44]}  Nf5 {[%clk 0:02:39]} 9. Nc2 {[%clk 0:02:41]}  Qb6 {[%clk 0:02:36]} 10. O-O {[%clk 0:02:38]}  Be7 {[%clk 0:02:35]} 11. g4 {[%clk 0:02:19]}  Nh4 {[%clk 0:02:32]} 12. Nxh4 {[%clk 0:02:18]}  Bxh4 {[%clk 0:02:33]} 13. f4 {[%clk 0:02:05]}  f6 {[%clk 0:01:44]} 14. Kh1 {[%clk 0:01:39]}  O-O {[%clk 0:01:42]} 15. Rb1 {[%clk 0:01:30]}  fxe5 {[%clk 0:01:36]} 16. fxe5 {[%clk 0:01:28]}  Rxf1+ {[%clk 0:01:16]} 17. Qxf1 {[%clk 0:01:15]}  Rf8 {[%clk 0:01:13]} 18. Qh3 {[%clk 0:01:14]}  g5 {[%clk 0:00:35]} 19. Bd3 {[%clk 0:01:07]}  h6 {[%clk 0:00:30]} 20. Be3 {[%clk 0:00:58]}  Ne7 {[%clk 0:00:24]} 21. b3 {[%clk 0:00:38]}  Bb5 {[%clk 0:00:24]} 22. Rd1 {[%clk 0:00:22]}  Bxd3 {[%clk 0:00:22]} 23. Rxd3 {[%clk 0:00:21]}  Qa6 {[%clk 0:00:22]} 24. Bg1 {[%clk 0:00:18]}  Qxa2 {[%clk 0:00:21]} 25. Rf3 {[%clk 0:00:18]}  Rxf3 {[%clk 0:00:19]} 26. Qxf3 {[%clk 0:00:17]}  Qxc2 {[%clk 0:00:20]} 27. Qf6 {[%clk 0:00:17]}  Qe4+ {[%clk 0:00:19]} 0-1


[Site "https://www.chess.com"]

[Event "Titled Tuesday Blitz December 20 Early 2022"]
[White "Balasch Peries, Eduard"]
[Black "dropstoneDP"]
[WhiteFideId "32067372"]
[WhiteElo "1671"]
[BlackElo "3038"]
[Result "0-1"]
[Round "01"]
[TimeControl "180+2"]
[Date "2022.12.20"]
[WhiteClock "0:01:12"]
[BlackClock "0:00:53"]

1. d4 {[%clk 0:03:00]}  Nf6 {[%clk 0:02:53]} 2. c4 {[%clk 0:03:01]}  g6 {[%clk 0:02:51]} 3. g3 {[%clk 0:03:01]}  c6 {[%clk 0:02:43]} 4. Bg2 {[%clk 0:03:01]}  d5 {[%clk 0:02:07]} 5. cxd5 {[%clk 0:03:02]}  cxd5 {[%clk 0:02:07]} 6. Nc3 {[%clk 0:03:02]}  Bg7 {[%clk 0:02:06]} 7. Nf3 {[%clk 0:03:02]}  Ne4 {[%clk 0:02:05]} 8. O-O {[%clk 0:03:00]}  Nc6 {[%clk 0:02:05]} 9. Qb3 {[%clk 0:02:54]}  Nxc3 {[%clk 0:02:02]} 10. bxc3 {[%clk 0:02:55]}  O-O {[%clk 0:02:02]} 11. a4 {[%clk 0:02:48]}  Na5 {[%clk 0:01:58]} 12. Qc2 {[%clk 0:02:44]}  Bf5 {[%clk 0:01:57]} 13. Qd1 {[%clk 0:02:30]}  Rc8 {[%clk 0:01:56]} 14. Bd2 {[%clk 0:02:23]}  Nc4 {[%clk 0:01:51]} 15. Nh4 {[%clk 0:02:21]}  Bg4 {[%clk 0:01:46]} 16. h3 {[%clk 0:02:20]}  Be6 {[%clk 0:01:46]} 17. Nf3 {[%clk 0:02:19]}  h6 {[%clk 0:01:23]} 18. Re1 {[%clk 0:02:19]}  Qd7 {[%clk 0:01:21]} 19. Kh2 {[%clk 0:02:18]}  b6 {[%clk 0:01:17]} 20. Bf1 {[%clk 0:02:12]}  Bf5 {[%clk 0:01:15]} 21. Nh4 {[%clk 0:02:10]}  e5 {[%clk 0:01:13]} 22. Nxf5 {[%clk 0:02:10]}  Qxf5 {[%clk 0:01:14]} 23. Bg2 {[%clk 0:01:33]}  exd4 {[%clk 0:01:11]} 24. cxd4 {[%clk 0:01:33]}  Qxf2 {[%clk 0:01:08]} 25. Bf4 {[%clk 0:01:27]}  g5 {[%clk 0:00:55]} 26. Be5 {[%clk 0:01:12]}  Ne3 {[%clk 0:00:53]} 0-1


[Site "https://www.chess.com"]

[Event "Titled Tuesday Blitz December 20 Early 2022"]
[White "CDOEspiao"]
[Black "Harsha_Bharathakoti"]
[WhiteElo "2486"]
[BlackElo "2867"]
[Result "0-1"]
[Round "01"]
[TimeControl "180+2"]
[Date "2022.12.20"]
[WhiteClock "0:00:15"]
[BlackClock "0:00:12"]

1. Nf3 {[%clk 0:02:58]}  f5 {[%clk 0:02:53]} 2. g3 {[%clk 0:02:58]}  Nf6 {[%clk 0:02:54]} 3. Bg2 {[%clk 0:02:59]}  g6 {[%clk 0:02:54]} 4. O-O {[%clk 0:02:59]}  Bg7 {[%clk 0:02:55]} 5. c3 {[%clk 0:03:00]}  O-O {[%clk 0:02:56]} 6. Qb3+ {[%clk 0:03:00]}  e6 {[%clk 0:02:54]} 7. d4 {[%clk 0:02:59]}  Nc6 {[%clk 0:02:41]} 8. Nbd2 {[%clk 0:02:52]}  d6 {[%clk 0:02:39]} 9. a4 {[%clk 0:02:37]}  Kh8 {[%clk 0:02:37]} 10. a5 {[%clk 0:02:37]}  a6 {[%clk 0:02:36]} 11. Nc4 {[%clk 0:02:35]}  Qe8 {[%clk 0:02:22]} 12. Nfd2 {[%clk 0:02:25]}  e5 {[%clk 0:02:16]} 13. dxe5 {[%clk 0:01:57]}  dxe5 {[%clk 0:02:14]} 14. e4 {[%clk 0:01:57]}  f4 {[%clk 0:02:10]} 15. Qc2 {[%clk 0:01:33]}  g5 {[%clk 0:02:04]} 16. b3 {[%clk 0:01:30]}  Qh5 {[%clk 0:01:59]} 17. Ba3 {[%clk 0:01:22]}  Re8 {[%clk 0:01:46]} 18. Rfe1 {[%clk 0:01:13]}  Bh3 {[%clk 0:01:27]} 19. Nf1 {[%clk 0:00:58]}  Bxg2 {[%clk 0:01:19]} 20. Kxg2 {[%clk 0:00:59]}  f3+ {[%clk 0:01:20]} 21. Kg1 {[%clk 0:01:00]}  Qh3 {[%clk 0:01:13]} 22. Nce3 {[%clk 0:00:58]}  Re6 {[%clk 0:00:55]} 23. Qd1 {[%clk 0:00:54]}  g4 {[%clk 0:00:55]} 24. Nd2 {[%clk 0:00:36]}  Bh6 {[%clk 0:00:55]} 25. Nxf3 {[%clk 0:00:32]}  Bxe3 {[%clk 0:00:41]} 26. Rxe3 {[%clk 0:00:15]}  gxf3 {[%clk 0:00:41]} 27. Rxf3 {[%clk 0:00:16]}  Ng4 {[%clk 0:00:41]} 28. Qd7 {[%clk 0:00:12]}  Qxh2+ {[%clk 0:00:04]} 29. Kf1 {[%clk 0:00:12]}  Qh1+ {[%clk 0:00:05]} 30. Ke2 {[%clk 0:00:12]}  Qxa1 {[%clk 0:00:06]} 31. Qxe6 {[%clk 0:00:13]}  Qxa3 {[%clk 0:00:03]} 32. Qxg4 {[%clk 0:00:12]}  Qe7 {[%clk 0:00:03]} 33. Rf5 {[%clk 0:00:12]}  Rd8 {[%clk 0:00:03]} 34. Kf3 {[%clk 0:00:12]}  Rg8 {[%clk 0:00:03]} 35. Qh5 {[%clk 0:00:12]}  Rf8 {[%clk 0:00:03]} 36. Kg2 {[%clk 0:00:13]}  Rxf5 {[%clk 0:00:03]} 37. exf5 {[%clk 0:00:14]}  Kg7 {[%clk 0:00:02]} 38. Qg4+ {[%clk 0:00:13]}  Kf8 {[%clk 0:00:03]} 39. Qh5 {[%clk 0:00:13]}  Qf7 {[%clk 0:00:03]} 40. Qh6+ {[%clk 0:00:14]}  Ke7 {[%clk 0:00:04]} 41. Qg5+ {[%clk 0:00:13]}  Kd7 {[%clk 0:00:04]} 42. f6 {[%clk 0:00:13]}  Ke6 {[%clk 0:00:04]} 43. f4 {[%clk 0:00:13]}  exf4 {[%clk 0:00:04]} 44. gxf4 {[%clk 0:00:13]}  Qxf6 {[%clk 0:00:05]} 45. Qg4+ {[%clk 0:00:13]}  Qf5 {[%clk 0:00:05]} 46. Qg8+ {[%clk 0:00:14]}  Kd7 {[%clk 0:00:05]} 47. Kg3 {[%clk 0:00:12]}  Qg6+ {[%clk 0:00:05]} 48. Qxg6 {[%clk 0:00:13]}  hxg6 {[%clk 0:00:06]} 49. Kg4 {[%clk 0:00:14]}  Ke6 {[%clk 0:00:06]} 50. Kg5 {[%clk 0:00:14]}  Ne7 {[%clk 0:00:07]} 51. c4 {[%clk 0:00:14]}  Kf7 {[%clk 0:00:08]} 52. b4 {[%clk 0:00:14]}  Nf5 {[%clk 0:00:08]} 53. b5 {[%clk 0:00:13]}  c6 {[%clk 0:00:09]} 54. bxa6 {[%clk 0:00:13]}  bxa6 {[%clk 0:00:10]} 55. c5 {[%clk 0:00:14]}  Ng7 {[%clk 0:00:10]} 56. Kg4 {[%clk 0:00:13]}  Kf6 {[%clk 0:00:10]} 57. Kf3 {[%clk 0:00:14]}  Kf5 {[%clk 0:00:11]} 58. Ke3 {[%clk 0:00:15]}  Ne6 {[%clk 0:00:12]} 0-1


[Site "https://www.chess.com"]

[Event "Titled Tuesday Blitz December 20 Early 2022"]
[White "Caisachess"]
[Black "Roman_Ovetchkin"]
[WhiteElo "2409"]
[BlackElo "2702"]
[Result "0-1"]
[Round "01"]
[TimeControl "180+2"]
[Date "2022.12.20"]
[WhiteClock "0:00:42"]
[BlackClock "0:00:46"]

1. e4 {[%clk 0:03:00]}  c6 {[%clk 0:02:58]} 2. d4 {[%clk 0:02:58]}  d5 {[%clk 0:02:59]} 3. exd5 {[%clk 0:02:58]}  cxd5 {[%clk 0:02:59]} 4. Nf3 {[%clk 0:02:59]}  Nf6 {[%clk 0:02:58]} 5. Ne5 {[%clk 0:03:00]}  g6 {[%clk 0:02:58]} 6. Bb5+ {[%clk 0:03:00]}  Nbd7 {[%clk 0:02:57]} 7. c3 {[%clk 0:02:57]}  Bg7 {[%clk 0:02:57]} 8. O-O {[%clk 0:02:57]}  O-O {[%clk 0:02:57]} 9. Nxd7 {[%clk 0:02:57]}  Bxd7 {[%clk 0:02:57]} 10. Bxd7 {[%clk 0:02:58]}  Qxd7 {[%clk 0:02:57]} 11. Bf4 {[%clk 0:02:58]}  b5 {[%clk 0:02:47]} 12. a4 {[%clk 0:02:47]}  Rfc8 {[%clk 0:02:40]} 13. Qb3 {[%clk 0:02:44]}  bxa4 {[%clk 0:02:37]} 14. Qxa4 {[%clk 0:02:43]}  Qb7 {[%clk 0:02:37]} 15. Qa3 {[%clk 0:02:30]}  e6 {[%clk 0:02:28]} 16. Nd2 {[%clk 0:02:28]}  a5 {[%clk 0:02:23]} 17. Be5 {[%clk 0:02:25]}  Bf8 {[%clk 0:02:19]} 18. Qa2 {[%clk 0:02:23]}  Nd7 {[%clk 0:02:18]} 19. Bf4 {[%clk 0:02:21]}  a4 {[%clk 0:02:18]} 20. Rfc1 {[%clk 0:02:07]}  Rc6 {[%clk 0:02:10]} 21. b4 {[%clk 0:02:05]}  Nb6 {[%clk 0:02:04]} 22. Nb1 {[%clk 0:01:54]}  Rac8 {[%clk 0:02:00]} 23. Bd2 {[%clk 0:01:51]}  Bxb4 {[%clk 0:01:51]} 24. Qb2 {[%clk 0:01:51]}  Bd6 {[%clk 0:01:51]} 25. Rxa4 {[%clk 0:01:51]}  Qc7 {[%clk 0:01:51]} 26. Ra1 {[%clk 0:01:46]}  Bxh2+ {[%clk 0:01:50]} 27. Kh1 {[%clk 0:01:45]}  Nc4 {[%clk 0:01:50]} 28. Qb4 {[%clk 0:01:38]}  Bd6 {[%clk 0:01:50]} 29. Qb3 {[%clk 0:01:38]}  Qe7 {[%clk 0:01:49]} 30. g3 {[%clk 0:01:34]}  Qf6 {[%clk 0:01:49]} 31. Kg2 {[%clk 0:01:33]}  Rb6 {[%clk 0:01:45]} 32. Qd1 {[%clk 0:01:22]}  h5 {[%clk 0:01:30]} 33. Be1 {[%clk 0:01:13]}  Qf5 {[%clk 0:01:22]} 34. Nd2 {[%clk 0:01:11]}  Nb2 {[%clk 0:01:15]} 35. Qf3 {[%clk 0:01:09]}  Nd3 {[%clk 0:01:07]} 36. Qxf5 {[%clk 0:01:07]}  gxf5 {[%clk 0:01:05]} 37. Rc2 {[%clk 0:01:07]}  Rbc6 {[%clk 0:00:55]} 38. Kh3 {[%clk 0:00:43]}  Nxe1 {[%clk 0:00:51]} 39. Rxe1 {[%clk 0:00:42]}  Rxc3 {[%clk 0:00:50]} 40. Rxc3 {[%clk 0:00:43]}  Rxc3 {[%clk 0:00:50]} 41. Kh4 {[%clk 0:00:42]}  Rc2 {[%clk 0:00:47]} 42. Re2 {[%clk 0:00:42]}  Bb4 {[%clk 0:00:46]} 0-1


[Site "https://www.chess.com"]

[Event "Titled Tuesday Blitz December 20 Early 2022"]
[White "Canche Cab, Marco Alexei"]
[Black "Formento, Paolo"]
[WhiteFideId "5116139"]
[BlackFideId "861162"]
[WhiteElo "2004"]
[BlackElo "2327"]
[Result "0-1"]
[Round "01"]
[TimeControl "180+2"]
[Date "2022.12.20"]
[WhiteClock "0:00:02"]
[BlackClock "0:00:13"]

1. e4 {[%clk 0:03:00]}  c5 {[%clk 0:02:58]} 2. Nf3 {[%clk 0:02:59]}  d6 {[%clk 0:02:58]} 3. Bb5+ {[%clk 0:02:58]}  Bd7 {[%clk 0:02:57]} 4. Bxd7+ {[%clk 0:02:57]}  Nxd7 {[%clk 0:02:58]} 5. O-O {[%clk 0:02:55]}  Ngf6 {[%clk 0:02:56]} 6. Qe2 {[%clk 0:02:52]}  Rc8 {[%clk 0:02:53]} 7. c3 {[%clk 0:02:50]}  e6 {[%clk 0:02:51]} 8. d4 {[%clk 0:02:50]}  cxd4 {[%clk 0:02:52]} 9. cxd4 {[%clk 0:02:50]}  Be7 {[%clk 0:02:44]} 10. Nc3 {[%clk 0:02:48]}  Nb6 {[%clk 0:02:44]} 11. a4 {[%clk 0:02:28]}  O-O {[%clk 0:02:23]} 12. a5 {[%clk 0:02:21]}  Na8 {[%clk 0:02:23]} 13. a6 {[%clk 0:02:08]}  b6 {[%clk 0:02:22]} 14. e5 {[%clk 0:01:44]}  dxe5 {[%clk 0:02:18]} 15. dxe5 {[%clk 0:01:45]}  Nd5 {[%clk 0:02:19]} 16. Nxd5 {[%clk 0:01:45]}  Qxd5 {[%clk 0:02:20]} 17. Rd1 {[%clk 0:01:44]}  Qc6 {[%clk 0:02:15]} 18. Nd4 {[%clk 0:01:40]}  Qe8 {[%clk 0:02:06]} 19. h4 {[%clk 0:00:46]}  Nc7 {[%clk 0:01:53]} 20. h5 {[%clk 0:00:45]}  h6 {[%clk 0:01:51]} 21. Qg4 {[%clk 0:00:34]}  Kh8 {[%clk 0:01:50]} 22. Bd2 {[%clk 0:00:29]}  Nd5 {[%clk 0:01:50]} 23. Rac1 {[%clk 0:00:27]}  Bc5 {[%clk 0:01:49]} 24. Nb3 {[%clk 0:00:23]}  Qb5 {[%clk 0:01:40]} 25. Nxc5 {[%clk 0:00:20]}  Rxc5 {[%clk 0:01:39]} 26. Rxc5 {[%clk 0:00:18]}  bxc5 {[%clk 0:01:38]} 27. Bc1 {[%clk 0:00:06]}  Qxa6 {[%clk 0:01:33]} 28. Qe4 {[%clk 0:00:06]}  Qb5 {[%clk 0:01:27]} 29. g4 {[%clk 0:00:06]}  Qb3 {[%clk 0:01:15]} 30. Rd3 {[%clk 0:00:05]}  Qc2 {[%clk 0:01:13]} 31. Be3 {[%clk 0:00:04]}  Nxe3 {[%clk 0:01:04]} 32. Qxe3 {[%clk 0:00:05]}  c4 {[%clk 0:01:00]} 33. Rd2 {[%clk 0:00:04]}  Qc1+ {[%clk 0:00:58]} 34. Kg2 {[%clk 0:00:04]}  Qb1 {[%clk 0:00:48]} 35. g5 {[%clk 0:00:03]}  Qf5 {[%clk 0:00:43]} 36. gxh6 {[%clk 0:00:03]}  Qxh5 {[%clk 0:00:39]} 37. hxg7+ {[%clk 0:00:02]}  Kxg7 {[%clk 0:00:39]} 38. Rd4 {[%clk 0:00:02]}  Rg8 {[%clk 0:00:34]} 39. Rxc4 {[%clk 0:00:03]}  Kh7+ {[%clk 0:00:28]} 40. Kf1 {[%clk 0:00:01]}  Qd1+ {[%clk 0:00:27]} 41. Qe1 {[%clk 0:00:02]}  Rg1+ {[%clk 0:00:28]} 42. Kxg1 {[%clk 0:00:02]}  Qxe1+ {[%clk 0:00:28]} 43. Kg2 {[%clk 0:00:03]}  Qxe5 {[%clk 0:00:27]} 44. Rc3 {[%clk 0:00:03]}  Kg7 {[%clk 0:00:24]} 45. Ra3 {[%clk 0:00:03]}  Qxb2 {[%clk 0:00:21]} 46. Rxa7 {[%clk 0:00:03]}  Qd4 {[%clk 0:00:21]} 47. Ra3 {[%clk 0:00:02]}  e5 {[%clk 0:00:20]} 48. Re3 {[%clk 0:00:02]}  f5 {[%clk 0:00:19]} 49. Rg3+ {[%clk 0:00:02]}  Kf6 {[%clk 0:00:19]} 50. Rh3 {[%clk 0:00:02]}  f4 {[%clk 0:00:16]} 51. Rh6+ {[%clk 0:00:02]}  Kf5 {[%clk 0:00:17]} 52. Rh5+ {[%clk 0:00:03]}  Kg6 {[%clk 0:00:16]} 53. Rh3 {[%clk 0:00:03]}  Qe4+ {[%clk 0:00:17]} 54. Kg1 {[%clk 0:00:03]}  f3 {[%clk 0:00:16]} 55. Rg3+ {[%clk 0:00:03]}  Kf5 {[%clk 0:00:16]} 56. Kh2 {[%clk 0:00:03]}  Kf4 {[%clk 0:00:14]} 57. Rg8 {[%clk 0:00:03]}  Qe1 {[%clk 0:00:14]} 58. Rf8+ {[%clk 0:00:03]}  Ke4 {[%clk 0:00:14]} 59. Kg3 {[%clk 0:00:02]}  Qg1+ {[%clk 0:00:13]} 0-1


[Site "https://www.chess.com"]

[Event "Titled Tuesday Blitz December 20 Early 2022"]
[White "CaptainCasanova"]
[Black "supertfc"]
[WhiteElo "2584"]
[BlackElo "2268"]
[Result "0-1"]
[Round "01"]
[TimeControl "180+2"]
[Date "2022.12.20"]
[WhiteClock "0:00:36"]
[BlackClock "0:00:25"]

1. f4 {[%clk 0:02:52]}  d5 {[%clk 0:02:58]} 2. Nf3 {[%clk 0:02:52]}  Nf6 {[%clk 0:02:56]} 3. g3 {[%clk 0:02:52]}  g6 {[%clk 0:02:56]} 4. Bg2 {[%clk 0:02:53]}  Bg7 {[%clk 0:02:57]} 5. O-O {[%clk 0:02:53]}  O-O {[%clk 0:02:56]} 6. d3 {[%clk 0:02:54]}  c5 {[%clk 0:02:57]} 7. c3 {[%clk 0:02:55]}  Nc6 {[%clk 0:02:57]} 8. Kh1 {[%clk 0:02:54]}  b6 {[%clk 0:02:56]} 9. Qe1 {[%clk 0:02:54]}  Bb7 {[%clk 0:02:55]} 10. Nbd2 {[%clk 0:02:49]}  Re8 {[%clk 0:02:49]} 11. d4 {[%clk 0:02:33]}  cxd4 {[%clk 0:02:26]} 12. cxd4 {[%clk 0:02:34]}  Nb4 {[%clk 0:02:23]} 13. Qd1 {[%clk 0:02:34]}  Rc8 {[%clk 0:02:18]} 14. a3 {[%clk 0:02:30]}  Nc2 {[%clk 0:02:17]} 15. Rb1 {[%clk 0:02:30]}  Ne3 {[%clk 0:02:17]} 16. Qe1 {[%clk 0:02:31]}  Nxf1 {[%clk 0:02:14]} 17. Qxf1 {[%clk 0:02:28]}  Ba6 {[%clk 0:02:14]} 18. Qe1 {[%clk 0:02:24]}  Qc7 {[%clk 0:02:03]} 19. Ne5 {[%clk 0:02:23]}  Qc2 {[%clk 0:02:00]} 20. b4 {[%clk 0:02:15]}  Bb5 {[%clk 0:01:57]} 21. Bb2 {[%clk 0:01:59]}  e6 {[%clk 0:01:55]} 22. e3 {[%clk 0:01:50]}  Nd7 {[%clk 0:01:47]} 23. Ba1 {[%clk 0:01:43]}  Nxe5 {[%clk 0:01:44]} 24. dxe5 {[%clk 0:01:44]}  Bd3 {[%clk 0:01:39]} 25. Bd4 {[%clk 0:01:39]}  Rc7 {[%clk 0:01:34]} 26. h4 {[%clk 0:01:38]}  Rec8 {[%clk 0:01:34]} 27. Kh2 {[%clk 0:01:37]}  h5 {[%clk 0:01:14]} 28. Bf3 {[%clk 0:01:12]}  Bf5 {[%clk 0:01:13]} 29. Bd1 {[%clk 0:01:08]}  Qd3 {[%clk 0:01:11]} 30. Rb3 {[%clk 0:01:05]}  Qb5 {[%clk 0:01:03]} 31. Be2 {[%clk 0:00:57]}  Qd7 {[%clk 0:00:53]} 32. b5 {[%clk 0:00:45]}  Rc1 {[%clk 0:00:52]} 33. Qf2 {[%clk 0:00:45]}  R8c2 {[%clk 0:00:52]} 34. Nf3 {[%clk 0:00:41]}  Bg4 {[%clk 0:00:41]} 35. Kg2 {[%clk 0:00:40]}  Qc7 {[%clk 0:00:34]} 36. a4 {[%clk 0:00:39]}  Rxe2 {[%clk 0:00:34]} 37. Qxe2 {[%clk 0:00:38]}  Rc2 {[%clk 0:00:35]} 38. Rb2 {[%clk 0:00:38]}  Rxe2+ {[%clk 0:00:33]} 39. Rxe2 {[%clk 0:00:39]}  Qc4 {[%clk 0:00:30]} 40. Kf2 {[%clk 0:00:39]}  Qxa4 {[%clk 0:00:29]} 41. Rb2 {[%clk 0:00:40]}  Qd1 {[%clk 0:00:28]} 42. Ne1 {[%clk 0:00:40]}  Bf8 {[%clk 0:00:27]} 43. Ra2 {[%clk 0:00:36]}  Bb4 {[%clk 0:00:25]} 0-1


[Site "https://www.chess.com"]